[Event "44th Chess Olympiad Women 2022"]
[Site "Chennai"]
[Date "2022.08.03"]
[Round "6.44"]
[White "Seine, Rose Berline"]
[Black "Van Zyl, Charlize"]
[Result "1/2-1/2"]
[WhiteElo "1679"]
[BlackElo "1704"]
[Annotator "NA RC"]
[PlyCount "141"]
[EventDate "2022.??.??"]
[TimeControl "60"]

1. e4 {[%emt 0:00:19]} c6 {[%emt 0:00:00]} 2. d4 {[%emt 0:00:00]} d5 {[%emt 0:
00:00]} 3. exd5 {[%emt 0:00:00]} cxd5 {[%emt 0:00:00]} 4. Bd3 {[%emt 0:00:00]}
Nc6 {[%emt 0:00:09]} 5. c3 {[%emt 0:00:07]} Qc7 {[%emt 0:00:21]} 6. h3 {
[%emt 0:00:25]} Nf6 {[%emt 0:00:35]} 7. Nf3 {[%emt 0:00:08]} g6 {[%emt 0:01:12]
} 8. Qc2 {[%emt 0:00:17]} Bg7 {[%emt 0:02:25]} 9. O-O {[%emt 0:00:12]} O-O {
[%emt 0:00:52]} 10. Re1 {[%emt 0:00:30]} Nh5 {[%emt 0:02:23]} 11. Qd2 {[%emt 0:
00:00]} e5 {[%emt 0:10:48]} 12. dxe5 {[%emt 0:01:14]} Nxe5 {[%emt 0:00:11]} 13.
Nxe5 {[%emt 0:00:24]} Bxe5 {[%emt 0:00:06]} 14. Na3 {[%emt 0:02:39]} a6 {
[%emt 0:07:41]} 15. Nc2 {[%emt 0:00:34]} Nf4 {[%emt 0:03:38]} 16. Bf1 {[%emt 0:
00:00]} f6 {[%emt 0:04:42]} 17. Nd4 {[%emt 0:00:32]} Bd7 {[%emt 0:01:57]} 18.
Qd1 {[%emt 0:01:29]} Rae8 {[%emt 0:05:45]} 19. Nf3 {[%emt 0:00:34]} Bc6 {
[%emt 0:04:38]} 20. Nxe5 {[%emt 0:07:02]} fxe5 {[%emt 0:00:06]} 21. Be3 {
[%emt 0:03:59]} Qd7 {[%emt 0:05:32]} 22. Qb3 {[%emt 0:05:01]} Qf5 {[%emt 0:00:
00]} 23. Rad1 {[%emt 0:01:00]} Kg7 {[%emt 0:04:51]} 24. Kh2 {[%emt 0:05:24]} g5
{[%emt 0:10:08]} 25. g3 {[%emt 0:03:25]} Ne6 {[%emt 0:00:52]} 26. Bg2 {[%emt 0:
00:00]} d4 {[%emt 0:03:39]} 27. cxd4 {[%emt 0:09:26]} exd4 {[%emt 0:00:56]} 28.
Rxd4 {[%emt 0:01:19]} Nxd4 {[%emt 0:09:17]} 29. Bxd4+ {[%emt 0:00:15]} Kg6 {
[%emt 0:00:22]} 30. Rxe8 {[%emt 0:00:54]} Rxe8 {[%emt 0:00:27]} 31. Bxc6 {
[%emt 0:01:15]} bxc6 {[%emt 0:00:10]} 32. Qb7 {[%emt 0:00:37]} Qf7 {[%emt 0:00:
00]} 33. Qxa6 {[%emt 0:00:20]} Qd7 {[%emt 0:03:27]} 34. Qd3+ {[%emt 0:02:27]}
Qf5 {[%emt 0:00:21]} 35. Qc3 {[%emt 0:03:31]} Re6 {[%emt 0:06:15]} 36. a4 {
[%emt 0:03:32]} h5 {[%emt 0:01:00]} 37. Qc5 {[%emt 0:05:47]} Qxc5 {[%emt 0:00:
00]} 38. Bxc5 {[%emt 0:00:08]} Re2 {[%emt 0:00:52]} 39. b4 {[%emt 0:00:31]} Kf5
{[%emt 0:00:22]} 40. a5 {[%emt 0:00:19]} Ra2 {[%emt 0:00:26]} 41. Kg2 {[%emt 0:
00:00]} g4 {[%emt 0:34:10]} 42. hxg4+ {[%emt 0:00:24]} hxg4 {[%emt 0:00:36]}
43. Kf1 {[%emt 0:00:12]} Ke4 {[%emt 0:00:25]} 44. Ke1 {[%emt 0:06:49]} Kd3 {
[%emt 0:02:28]} 45. Kf1 {[%emt 0:04:49]} Ke4 {[%emt 0:01:04]} 46. Kg2 {[%emt 0:
00:00]} Kf5 {[%emt 0:01:19]} 47. Bf8 {[%emt 0:01:00]} Ke4 {[%emt 0:00:46]} 48.
Bg7 {[%emt 0:01:55]} Kd3 {[%emt 0:00:00]} 49. Be5 {[%emt 0:00:00]} Kc4 {
[%emt 0:00:00]} 50. Bd6 {[%emt 0:00:00]} Kd5 {[%emt 0:00:00]} 51. Bf8 {[%emt 0:
00:00]} Ke4 {[%emt 0:00:00]} 52. Bg7 {[%emt 0:00:00]} Kd3 {[%emt 0:00:00]} 53.
Kf1 {[%emt 0:00:00]} Kc4 {[%emt 0:00:00]} 54. Bf8 {[%emt 0:00:00]} Kd4 {
[%emt 0:00:00]} 55. f3 {[%emt 0:00:00]} gxf3 {[%emt 0:00:00]} 56. g4 {[%emt 0:
00:00]} Ke3 {[%emt 0:00:00]} 57. Bh6+ {[%emt 0:01:24]} Ke4 {[%emt 0:00:00]} 58.
Bg5 {[%emt 0:14:41]} Rg2 {[%emt 0:00:00]} 59. Be7 {[%emt 0:02:44]} Rxg4 {
[%emt 0:00:00]} 60. a6 {[%emt 0:00:40]} Rg2 {[%emt 0:00:00]} 61. a7 {[%emt 0:
00:00]} Ra2 {[%emt 0:00:00]} 62. Bc5 {[%emt 0:00:20]} Kd5 {[%emt 0:00:00]} 63.
Bb6 {[%emt 0:00:26]} Ra6 {[%emt 0:00:00]} 64. Kf2 {[%emt 0:01:11]} Kc4 {
[%emt 0:02:46]} 65. Bc5 {[%emt 0:00:14]} Ra3 {[%emt 0:00:39]} 66. Kg3 {[%emt 0:
00:00]} Kb5 {[%emt 0:01:20]} 67. Kf2 {[%emt 0:00:50]} Kc4 {[%emt 0:01:30]} 68.
Kg3 {[%emt 0:00:20]} Rxa7 {[%emt 0:00:50]} 69. Bxa7 {[%emt 0:00:11]} Kxb4 {
[%emt 0:00:03]} 70. Kxf3 {[%emt 0:00:10]} c5 {[%emt 0:00:05]} 71. Bxc5+ {
[%emt 0:00:16]} 1/2-1/2

[Event "44th Chess Olympiad Women 2022"]
[Site "Chennai"]
[Date "2022.08.03"]
[Round "6.45"]
[White "Al-Fayyadh, Zainab Asif Abdulah"]
[Black "Thornton, Filipina"]
[Result "1/2-1/2"]
[WhiteElo "1749"]
[BlackElo "1661"]
[Annotator "NA RC"]
[PlyCount "147"]
[EventDate "2022.??.??"]
[TimeControl "60"]

1. e4 {[%emt 0:00:06]} c5 {[%emt 0:00:28]} 2. Nc3 {[%emt 0:00:07]} d6 {[%emt 0:
00:00]} 3. f4 {[%emt 0:00:07]} e6 {[%emt 0:00:19]} 4. Nf3 {[%emt 0:00:09]} Nc6
{[%emt 0:00:41]} 5. Bb5 {[%emt 0:00:06]} Bd7 {[%emt 0:00:21]} 6. Bxc6 {[%emt 0:
00:00]} Bxc6 {[%emt 0:00:23]} 7. O-O {[%emt 0:00:30]} Nf6 {[%emt 0:00:16]} 8.
d3 {[%emt 0:00:08]} Be7 {[%emt 0:00:30]} 9. Qe1 {[%emt 0:00:44]} Qc7 {[%emt 0:
00:00]} 10. Kh1 {[%emt 0:02:43]} O-O {[%emt 0:06:05]} 11. Qg3 {[%emt 0:02:43]}
Rfe8 {[%emt 0:04:22]} 12. f5 {[%emt 0:07:23]} exf5 {[%emt 0:03:05]} 13. exf5 {
[%emt 0:05:41]} Bf8 {[%emt 0:01:19]} 14. Bg5 {[%emt 0:01:54]} Nd7 {[%emt 0:00:
00]} 15. f6 {[%emt 0:04:44]} g6 {[%emt 0:02:42]} 16. Qh4 {[%emt 0:00:31]} Re6 {
[%emt 0:03:24]} 17. Nd2 {[%emt 0:01:18]} Ne5 {[%emt 0:15:54]} 18. Bh6 {[%emt 0:
00:00]} Qd8 {[%emt 0:00:05]} 19. Nde4 {[%emt 0:00:42]} Bxh6 {[%emt 0:03:18]}
20. Qxh6 {[%emt 0:00:57]} Qf8 {[%emt 0:00:07]} 21. Qh3 {[%emt 0:00:50]} h5 {
[%emt 0:04:06]} 22. Ng5 {[%emt 0:01:05]} Ree8 {[%emt 0:00:14]} 23. Nce4 {
[%emt 0:02:44]} d5 {[%emt 0:02:53]} 24. Ng3 {[%emt 0:00:50]} Qh6 {[%emt 0:00:
00]} 25. Qh4 {[%emt 0:06:03]} Ng4 {[%emt 0:01:38]} 26. h3 {[%emt 0:04:03]} Ne3
{[%emt 0:00:54]} 27. Rf2 {[%emt 0:00:36]} Re5 {[%emt 0:01:35]} 28. Nf3 {
[%emt 0:01:28]} Ree8 {[%emt 0:06:19]} 29. d4 {[%emt 0:01:24]} c4 {[%emt 0:00:
00]} 30. Ne5 {[%emt 0:01:30]} c3 {[%emt 0:09:32]} 31. Nxc6 {[%emt 0:04:08]}
bxc6 {[%emt 0:00:44]} 32. b3 {[%emt 0:05:02]} Re6 {[%emt 0:00:59]} 33. Nf1 {
[%emt 0:05:45]} Nf5 {[%emt 0:05:02]} 34. Qf4 {[%emt 0:08:45]} Qxf4 {[%emt 0:00:
00]} 35. Rxf4 {[%emt 0:00:07]} Rae8 {[%emt 0:00:45]} 36. g4 {[%emt 0:01:18]}
hxg4 {[%emt 0:01:01]} 37. hxg4 {[%emt 0:00:11]} Ne3 {[%emt 0:00:16]} 38. Nxe3 {
[%emt 0:00:56]} Rxe3 {[%emt 0:00:07]} 39. Raf1 {[%emt 0:00:37]} Re2 {[%emt 0:
00:00]} 40. R1f2 {[%emt 0:00:27]} Rd2 {[%emt 0:00:42]} 41. Kg1 {[%emt 0:33:29]}
Ree2 {[%emt 0:31:45]} 42. R4f3 {[%emt 0:00:18]} Rxf2 {[%emt 0:04:30]} 43. Rxf2
{[%emt 0:05:53]} Rxd4 {[%emt 0:00:44]} 44. g5 {[%emt 0:04:27]} Re4 {[%emt 0:00:
00]} 45. Kf1 {[%emt 0:01:09]} Re5 {[%emt 0:07:18]} 46. Rg2 {[%emt 0:03:53]} c5
{[%emt 0:00:00]} 47. Rg4 {[%emt 0:00:00]} a6 {[%emt 0:00:00]} 48. Ra4 {[%emt 0:
00:00]} Rxg5 {[%emt 0:00:00]} 49. Rxa6 {[%emt 0:00:00]} Rf5+ {[%emt 0:00:00]}
50. Ke2 {[%emt 0:00:00]} g5 {[%emt 0:00:00]} 51. Ra5 {[%emt 0:00:00]} g4 {
[%emt 0:00:00]} 52. Rxc5 {[%emt 0:00:00]} g3 {[%emt 0:00:00]} 53. Rxc3 {
[%emt 0:00:00]} Rg5 {[%emt 0:00:00]} 54. Kf1 {[%emt 0:00:00]} Rf5+ {[%emt 0:00:
00]} 55. Kg2 {[%emt 0:00:00]} Rxf6 {[%emt 0:00:00]} 56. Rxg3+ {[%emt 0:00:00]}
Kf8 {[%emt 0:00:00]} 57. Re3 {[%emt 0:00:00]} Rf5 {[%emt 0:00:00]} 58. a4 {
[%emt 0:00:00]} d4 {[%emt 0:00:00]} 59. Rd3 {[%emt 0:00:00]} Rc5 {[%emt 0:00:
00]} 60. Rd2 {[%emt 0:00:00]} Ke7 {[%emt 0:00:00]} 61. Kf3 {[%emt 0:00:00]} f5
{[%emt 0:00:00]} 62. Rxd4 {[%emt 0:00:00]} Rxc2 {[%emt 0:00:00]} 63. b4 {
[%emt 0:00:00]} Ra2 {[%emt 0:01:33]} 64. b5 {[%emt 0:00:00]} Rb2 {[%emt 0:00:
00]} 65. Rc4 {[%emt 0:00:00]} Kd6 {[%emt 0:01:04]} 66. Kf4 {[%emt 0:00:00]} Kd5
{[%emt 0:00:33]} 67. Rc1 {[%emt 0:00:00]} Rb4+ {[%emt 0:00:08]} 68. Kxf5 {
[%emt 0:00:00]} Rxa4 {[%emt 0:00:07]} 69. Rb1 {[%emt 0:00:00]} Ra8 {[%emt 0:00:
00]} 70. b6 {[%emt 0:00:00]} Rf8+ {[%emt 0:00:25]} 71. Kg6 {[%emt 0:00:00]} Kc6
{[%emt 0:00:35]} 72. b7 {[%emt 0:00:00]} Rb8 {[%emt 0:00:16]} 73. Kf7 {[%emt 0:
00:00]} Rxb7+ {[%emt 0:00:06]} 74. Rxb7 {[%emt 0:00:00]} 1/2-1/2

[Event "44th Chess Olympiad Women 2022"]
[Site "Chennai"]
[Date "2022.08.03"]
[Round "6.45"]
[White "Farrugia, Jamie"]
[Black "A-ALI, Sali Abbas Abdulzah"]
[Result "0-1"]
[WhiteElo "1547"]
[BlackElo "1864"]
[Annotator "NA RC"]
[PlyCount "118"]
[EventDate "2022.??.??"]
[TimeControl "60"]

1. e4 {[%emt 0:00:06]} e6 {[%emt 0:00:07]} 2. d4 {[%emt 0:00:05]} d5 {[%emt 0:
00:00]} 3. e5 {[%emt 0:00:07]} c5 {[%emt 0:00:06]} 4. c3 {[%emt 0:00:08]} Nc6 {
[%emt 0:00:06]} 5. Nf3 {[%emt 0:00:05]} Qb6 {[%emt 0:00:09]} 6. a3 {[%emt 0:00:
00]} c4 {[%emt 0:00:22]} 7. Nbd2 {[%emt 0:00:20]} Na5 {[%emt 0:00:39]} 8. g3 {
[%emt 0:00:26]} Ne7 {[%emt 0:08:31]} 9. h4 {[%emt 0:01:34]} Bd7 {[%emt 0:02:00]
} 10. Bh3 {[%emt 0:00:52]} g6 {[%emt 0:00:49]} 11. O-O {[%emt 0:01:56]} Bg7 {
[%emt 0:01:11]} 12. Rb1 {[%emt 0:01:37]} O-O {[%emt 0:02:40]} 13. Nh2 {[%emt 0:
00:00]} f6 {[%emt 0:03:09]} 14. exf6 {[%emt 0:05:31]} Bxf6 {[%emt 0:02:31]} 15.
Ng4 {[%emt 0:00:50]} Bg7 {[%emt 0:01:07]} 16. Nf3 {[%emt 0:02:14]} Nac6 {
[%emt 0:04:22]} 17. Nh6+ {[%emt 0:12:22]} Kh8 {[%emt 0:01:26]} 18. Qe2 {
[%emt 0:12:49]} Nf5 {[%emt 0:04:04]} 19. Ng4 {[%emt 0:14:46]} Rae8 {[%emt 0:00:
00]} 20. Nge5 {[%emt 0:01:34]} Bc8 {[%emt 0:03:16]} 21. Bg4 {[%emt 0:12:37]}
Nh6 {[%emt 0:04:04]} 22. Bh3 {[%emt 0:04:33]} Nf7 {[%emt 0:04:55]} 23. h5 {
[%emt 0:02:14]} Nfxe5 {[%emt 0:02:37]} 24. dxe5 {[%emt 0:10:22]} Qc7 {[%emt 0:
00:00]} 25. hxg6 {[%emt 0:00:52]} Nxe5 {[%emt 0:04:16]} 26. Nxe5 {[%emt 0:00:
00]} Qxe5 {[%emt 0:00:06]} 27. Qxe5 {[%emt 0:00:22]} Bxe5 {[%emt 0:00:06]} 28.
gxh7 {[%emt 0:00:10]} Kxh7 {[%emt 0:00:21]} 29. Be3 {[%emt 0:00:27]} a6 {
[%emt 0:01:07]} 30. Kg2 {[%emt 0:00:12]} b5 {[%emt 0:00:36]} 31. Rh1 {[%emt 0:
00:00]} Kg6 {[%emt 0:02:04]} 32. f4 {[%emt 0:02:10]} Bg7 {[%emt 0:01:06]} 33.
Bg4 {[%emt 0:01:32]} Rh8 {[%emt 0:01:25]} 34. Rxh8 {[%emt 0:04:13]} Rxh8 {
[%emt 0:00:13]} 35. Bd4 {[%emt 0:00:35]} Bxd4 {[%emt 0:01:10]} 36. cxd4 {
[%emt 0:00:06]} a5 {[%emt 0:01:46]} 37. Re1 {[%emt 0:00:28]} Kf6 {[%emt 0:00:
00]} 38. Re5 {[%emt 0:00:52]} b4 {[%emt 0:01:33]} 39. Re3 {[%emt 0:01:30]} Bd7
{[%emt 0:00:30]} 40. Bh3 {[%emt 0:00:26]} Rc8 {[%emt 0:01:51]} 41. g4 {[%emt 0:
00:00]} c3 {[%emt 0:30:29]} 42. g5+ {[%emt 0:00:00]} Kf7 {[%emt 0:00:00]} 43.
bxc3 {[%emt 0:00:00]} Rxc3 {[%emt 0:00:00]} 44. Bxe6+ {[%emt 0:00:00]} Bxe6 {
[%emt 0:00:00]} 45. g6+ {[%emt 0:00:00]} Kf6 {[%emt 0:00:00]} 46. Re5 {[%emt 0:
00:00]} Rxa3 {[%emt 0:00:00]} 47. g7 {[%emt 0:00:00]} Bh3+ {[%emt 0:00:00]} 48.
Kf2 {[%emt 0:00:00]} Kxg7 {[%emt 0:00:00]} 49. Rxd5 {[%emt 0:00:00]} b3 {
[%emt 0:00:00]} 50. Rb5 {[%emt 0:00:00]} a4 {[%emt 0:00:00]} 51. Ke2 {[%emt 0:
00:00]} Ra2+ {[%emt 0:00:00]} 52. Kd1 {[%emt 0:00:00]} Ra1+ {[%emt 0:00:00]}
53. Kd2 {[%emt 0:00:00]} Rf1 {[%emt 0:00:00]} 54. Rb4 {[%emt 0:00:00]} a3 {
[%emt 0:00:00]} 55. Rxb3 {[%emt 0:00:12]} a2 {[%emt 0:00:00]} 56. Ra3 {[%emt 0:
00:00]} a1=Q {[%emt 0:00:00]} 57. Rxa1 {[%emt 0:00:04]} Rxa1 {[%emt 0:00:00]}
58. Ke3 {[%emt 0:00:01]} Bf5 {[%emt 0:00:00]} 59. d5 {[%emt 0:00:14]} Rd1 {
[%emt 0:00:00]} 0-1

[Event "44th Chess Olympiad Women 2022"]
[Site "Chennai"]
[Date "2022.08.03"]
[Round "6.45"]
[White "Tiba, Mahdi Attiyah"]
[Black "Psaila, Uranchimeg"]
[Result "1-0"]
[WhiteElo "1759"]
[BlackElo "1395"]
[Annotator "NA RC"]
[PlyCount "99"]
[EventDate "2022.??.??"]
[TimeControl "60"]

1. e4 {[%emt 0:00:11]} e6 {[%emt 0:00:17]} 2. d4 {[%emt 0:00:12]} d5 {[%emt 0:
00:00]} 3. exd5 {[%emt 0:00:53]} exd5 {[%emt 0:00:15]} 4. Bd3 {[%emt 0:00:06]}
Bd6 {[%emt 0:00:26]} 5. Nf3 {[%emt 0:01:21]} Bg4 {[%emt 0:01:26]} 6. O-O {
[%emt 0:00:24]} Ne7 {[%emt 0:00:12]} 7. c3 {[%emt 0:01:15]} O-O {[%emt 0:00:21]
} 8. Nbd2 {[%emt 0:05:06]} Nd7 {[%emt 0:03:44]} 9. Qc2 {[%emt 0:01:09]} Ng6 {
[%emt 0:06:04]} 10. h3 {[%emt 0:08:03]} Bxf3 {[%emt 0:04:36]} 11. Nxf3 {
[%emt 0:00:04]} Re8 {[%emt 0:02:20]} 12. Bg5 {[%emt 0:05:32]} Be7 {[%emt 0:00:
00]} 13. Bxe7 {[%emt 0:03:32]} Qxe7 {[%emt 0:01:35]} 14. Rfe1 {[%emt 0:02:01]}
Qf6 {[%emt 0:02:11]} 15. Bxg6 {[%emt 0:30:47]} hxg6 {[%emt 0:05:32]} 16. Qb3 {
[%emt 0:01:26]} Nb6 {[%emt 0:04:52]} 17. a4 {[%emt 0:05:39]} a5 {[%emt 0:03:17]
} 18. Qb5 {[%emt 0:00:58]} Qc6 {[%emt 0:02:33]} 19. Qxc6 {[%emt 0:03:33]} bxc6
{[%emt 0:00:45]} 20. Rxe8+ {[%emt 0:01:33]} Rxe8 {[%emt 0:00:09]} 21. Ne5 {
[%emt 0:00:21]} Re6 {[%emt 0:01:59]} 22. Kf1 {[%emt 0:00:47]} g5 {[%emt 0:00:
00]} 23. b3 {[%emt 0:04:16]} f6 {[%emt 0:04:11]} 24. Nd3 {[%emt 0:00:16]} Nd7 {
[%emt 0:01:01]} 25. Re1 {[%emt 0:03:24]} Kf7 {[%emt 0:02:40]} 26. Rxe6 {
[%emt 0:04:04]} Kxe6 {[%emt 0:00:09]} 27. b4 {[%emt 0:00:51]} axb4 {[%emt 0:00:
00]} 28. cxb4 {[%emt 0:00:15]} Nb6 {[%emt 0:02:46]} 29. Nc5+ {[%emt 0:01:39]}
Kd6 {[%emt 0:02:33]} 30. a5 {[%emt 0:00:34]} Na8 {[%emt 0:01:04]} 31. Ke2 {
[%emt 0:00:27]} Ke7 {[%emt 0:02:26]} 32. Kf3 {[%emt 0:00:36]} g6 {[%emt 0:00:
00]} 33. Kg4 {[%emt 0:02:06]} Kd6 {[%emt 0:01:58]} 34. f4 {[%emt 0:01:36]} gxf4
{[%emt 0:00:52]} 35. Kxf4 {[%emt 0:00:02]} Ke7 {[%emt 0:01:26]} 36. g4 {
[%emt 0:00:30]} Kd6 {[%emt 0:05:36]} 37. h4 {[%emt 0:00:12]} Ke7 {[%emt 0:00:
00]} 38. h5 {[%emt 0:00:51]} Kf7 {[%emt 0:04:10]} 39. hxg6+ {[%emt 0:01:48]}
Kxg6 {[%emt 0:00:10]} 40. Nd7 {[%emt 0:00:17]} Kf7 {[%emt 0:01:36]} 41. Kf5 {
[%emt 0:30:15]} c5 {[%emt 0:32:36]} 42. bxc5 {[%emt 0:02:56]} c6 {[%emt 0:00:
00]} 43. Nxf6 {[%emt 0:00:36]} Nc7 {[%emt 0:00:45]} 44. Nd7 {[%emt 0:00:16]}
Nb5 {[%emt 0:00:44]} 45. Ke5 {[%emt 0:01:42]} Ke7 {[%emt 0:02:40]} 46. Nb6 {
[%emt 0:00:30]} Kf7 {[%emt 0:01:06]} 47. a6 {[%emt 0:00:15]} Ke7 {[%emt 0:00:
00]} 48. Nc8+ {[%emt 0:00:45]} Kf7 {[%emt 0:03:40]} 49. a7 {[%emt 0:00:20]} Nc7
{[%emt 0:01:21]} 50. Nb6 {[%emt 0:00:29]} 1-0

[Event "44th Chess Olympiad Women 2022"]
[Site "Chennai"]
[Date "2022.08.03"]
[Round "6.46"]
[White "Al Bulushi, Rawan"]
[Black "Bofroud, Naya"]
[Result "1-0"]
[WhiteElo "1442"]
[BlackElo "1660"]
[Annotator "NA RC"]
[PlyCount "107"]
[EventDate "2022.??.??"]
[TimeControl "60"]

1. c4 {[%emt 0:00:23]} e6 {[%emt 0:00:21]} 2. g3 {[%emt 0:00:41]} d5 {[%emt 0:
00:00]} 3. cxd5 {[%emt 0:01:00]} exd5 {[%emt 0:00:06]} 4. Bg2 {[%emt 0:00:25]}
Nf6 {[%emt 0:00:30]} 5. Nf3 {[%emt 0:00:40]} c6 {[%emt 0:00:16]} 6. d4 {
[%emt 0:01:21]} Be7 {[%emt 0:03:13]} 7. Nc3 {[%emt 0:01:53]} Bf5 {[%emt 0:00:
00]} 8. h3 {[%emt 0:01:42]} Nbd7 {[%emt 0:03:42]} 9. g4 {[%emt 0:02:02]} Bg6 {
[%emt 0:00:30]} 10. Nh4 {[%emt 0:01:20]} Nf8 {[%emt 0:12:11]} 11. g5 {[%emt 0:
00:00]} Nh5 {[%emt 0:11:54]} 12. e4 {[%emt 0:02:57]} dxe4 {[%emt 0:02:06]} 13.
Nxg6 {[%emt 0:02:19]} hxg6 {[%emt 0:01:03]} 14. d5 {[%emt 0:11:31]} Bxg5 {
[%emt 0:29:21]} 15. dxc6 {[%emt 0:01:57]} Qxd1+ {[%emt 0:00:35]} 16. Nxd1 {
[%emt 0:01:31]} Bxc1 {[%emt 0:00:56]} 17. cxb7 {[%emt 0:01:24]} Bd2+ {[%emt 0:
00:00]} 18. Kxd2 {[%emt 0:00:59]} Rd8+ {[%emt 0:00:18]} 19. Kc2 {[%emt 0:01:25]
} f5 {[%emt 0:00:29]} 20. Nc3 {[%emt 0:02:17]} Rb8 {[%emt 0:07:18]} 21. Nb5 {
[%emt 0:00:49]} a6 {[%emt 0:01:04]} 22. Nd6+ {[%emt 0:00:36]} Ke7 {[%emt 0:00:
00]} 23. Rhd1 {[%emt 0:00:17]} Ne6 {[%emt 0:00:41]} 24. b4 {[%emt 0:00:58]} Nd8
{[%emt 0:04:23]} 25. Nc8+ {[%emt 0:12:37]} Kf6 {[%emt 0:07:12]} 26. Rd6+ {
[%emt 0:03:01]} Kg5 {[%emt 0:00:27]} 27. h4+ {[%emt 0:01:11]} Kh6 {[%emt 0:00:
00]} 28. Ne7 {[%emt 0:02:48]} Nf6 {[%emt 0:00:57]} 29. h5 {[%emt 0:02:13]} Nf7
{[%emt 0:01:32]} 30. Rxa6 {[%emt 0:00:45]} Rxb7 {[%emt 0:00:12]} 31. hxg6 {
[%emt 0:02:01]} Kg5 {[%emt 0:01:25]} 32. Nxf5 {[%emt 0:03:14]} Kxf5 {[%emt 0:
00:00]} 33. gxf7 {[%emt 0:00:08]} Rxb4 {[%emt 0:00:46]} 34. Rh1 {[%emt 0:02:26]
} Rc8+ {[%emt 0:00:49]} 35. Kd2 {[%emt 0:02:43]} Rb2+ {[%emt 0:00:40]} 36. Kd1
{[%emt 0:01:42]} Rd8+ {[%emt 0:03:04]} 37. Kc1 {[%emt 0:01:03]} Rxf2 {[%emt 0:
00:00]} 38. Rf1 {[%emt 0:01:09]} Rxf1+ {[%emt 0:00:07]} 39. Bxf1 {[%emt 0:00:
00]} Kf4 {[%emt 0:01:18]} 40. Re6 {[%emt 0:00:54]} Kf3 {[%emt 0:00:35]} 41. a4
{[%emt 0:30:38]} e3 {[%emt 0:30:42]} 42. Bb5 {[%emt 0:00:41]} Rf8 {[%emt 0:00:
00]} 43. Re7 {[%emt 0:00:00]} Kf2 {[%emt 0:00:00]} 44. a5 {[%emt 0:00:00]} Nd5
{[%emt 0:00:00]} 45. Re5 {[%emt 0:00:00]} Nc7 {[%emt 0:00:00]} 46. Rf5+ {
[%emt 0:00:00]} Kg3 {[%emt 0:00:00]} 47. Bc4 {[%emt 0:00:00]} Kg4 {[%emt 0:00:
00]} 48. Rf1 {[%emt 0:00:00]} Kg5 {[%emt 0:00:00]} 49. Kd1 {[%emt 0:00:00]} Ne8
{[%emt 0:00:00]} 50. fxe8=Q {[%emt 0:00:00]} Rxe8 {[%emt 0:00:00]} 51. Ke2 {
[%emt 0:00:00]} Rc8 {[%emt 0:00:00]} 52. Bd3 {[%emt 0:00:00]} Ra8 {[%emt 0:00:
00]} 53. a6 {[%emt 0:00:00]} Ra7 {[%emt 0:00:16]} 54. Kxe3 {[%emt 0:00:00]} 1-0

[Event "44th Chess Olympiad Women 2022"]
[Site "Chennai"]
[Date "2022.08.03"]
[Round "6.46"]
[White "Al Ghafri, Alanoud"]
[Black "Mahmoud, Roula"]
[Result "0-1"]
[WhiteElo "1259"]
[BlackElo "1765"]
[Annotator "NA RC"]
[PlyCount "48"]
[EventDate "2022.??.??"]
[TimeControl "60"]

1. e4 {[%emt 1:31:00]} c5 {[%emt 0:00:10]} 2. b3 {[%emt 0:00:00]} d6 {[%emt 0:
00:00]} 3. Bb2 {[%emt 0:00:00]} Nf6 {[%emt 0:00:46]} 4. Nc3 {[%emt 0:00:00]} g6
{[%emt 0:00:10]} 5. Nf3 {[%emt 0:00:00]} Bg7 {[%emt 0:00:52]} 6. Nd5 {[%emt 0:
00:00]} Nbd7 {[%emt 0:00:28]} 7. Bb5 {[%emt 0:00:00]} O-O {[%emt 0:00:28]} 8.
Bxd7 {[%emt 0:00:00]} Bxd7 {[%emt 0:00:06]} 9. Nxf6+ {[%emt 0:00:00]} exf6 {
[%emt 0:00:20]} 10. O-O {[%emt 0:00:00]} Re8 {[%emt 0:00:15]} 11. d3 {[%emt 0:
00:00]} f5 {[%emt 0:00:20]} 12. Bxg7 {[%emt 0:00:00]} Kxg7 {[%emt 0:00:01]} 13.
Nd2 {[%emt 0:00:00]} fxe4 {[%emt 0:00:45]} 14. Nxe4 {[%emt 0:00:00]} Bc6 {
[%emt 0:00:21]} 15. Re1 {[%emt 0:00:00]} f5 {[%emt 0:00:47]} 16. Ng3 {[%emt 0:
00:00]} Qg5 {[%emt 0:02:46]} 17. Rxe8 {[%emt 0:00:00]} Rxe8 {[%emt 0:00:17]}
18. f3 {[%emt 0:00:00]} h5 {[%emt 0:04:54]} 19. Nf1 {[%emt 0:00:00]} Qf6 {
[%emt 0:01:41]} 20. Rb1 {[%emt 0:00:00]} Qd4+ {[%emt 0:01:02]} 21. Kh1 {
[%emt 0:00:00]} Qf2 {[%emt 0:00:14]} 22. Ng3 {[%emt 0:00:00]} h4 {[%emt 0:00:
00]} 23. Nxf5+ {[%emt 0:00:00]} gxf5 {[%emt 0:00:16]} 24. Rc1 {[%emt 0:00:00]}
h3 {[%emt 0:00:33]} 0-1

[Event "44th Chess Olympiad Women 2022"]
[Site "Chennai"]
[Date "2022.08.03"]
[Round "6.46"]
[White "Khalil, Manar"]
[Black "Al Balushi, Mariya"]
[Result "1-0"]
[WhiteElo "1831"]
[BlackElo "1660"]
[Annotator "NA RC"]
[PlyCount "51"]
[EventDate "2022.??.??"]
[TimeControl "60"]

1. e4 {[%emt 0:00:04]} e5 {[%emt 0:00:07]} 2. Nf3 {[%emt 0:00:14]} Nc6 {
[%emt 0:00:07]} 3. d4 {[%emt 0:00:10]} exd4 {[%emt 0:00:07]} 4. Bc4 {[%emt 0:
00:00]} Qe7 {[%emt 0:00:49]} 5. O-O {[%emt 0:00:23]} d6 {[%emt 0:01:02]} 6.
Nxd4 {[%emt 0:01:33]} Ne5 {[%emt 0:01:52]} 7. Be2 {[%emt 0:01:17]} Nf6 {
[%emt 0:02:39]} 8. Nc3 {[%emt 0:01:01]} Bd7 {[%emt 0:03:48]} 9. f4 {[%emt 0:00:
00]} Nc6 {[%emt 0:09:07]} 10. Bf3 {[%emt 0:02:02]} O-O-O {[%emt 0:04:54]} 11.
Nxc6 {[%emt 0:03:22]} Bxc6 {[%emt 0:00:45]} 12. Qd4 {[%emt 0:00:17]} Kb8 {
[%emt 0:02:29]} 13. Be3 {[%emt 0:00:46]} b6 {[%emt 0:00:48]} 14. Bf2 {[%emt 0:
00:00]} Nd7 {[%emt 0:07:02]} 15. Nd5 {[%emt 0:04:15]} Qe6 {[%emt 0:04:33]} 16.
a4 {[%emt 0:01:53]} h5 {[%emt 0:03:42]} 17. a5 {[%emt 0:01:23]} Rh7 {[%emt 0:
00:00]} 18. axb6 {[%emt 0:00:46]} cxb6 {[%emt 0:01:04]} 19. Qc4 {[%emt 0:04:03]
} Nc5 {[%emt 0:08:56]} 20. b4 {[%emt 0:01:33]} Qd7 {[%emt 0:03:41]} 21. bxc5 {
[%emt 0:02:24]} Bb5 {[%emt 0:00:20]} 22. Qb3 {[%emt 0:00:35]} Bxf1 {[%emt 0:00:
00]} 23. cxb6 {[%emt 0:01:35]} axb6 {[%emt 0:07:20]} 24. Qxb6+ {[%emt 0:00:28]}
Qb7 {[%emt 0:03:24]} 25. Qxd8+ {[%emt 0:00:13]} Qc8 {[%emt 0:00:10]} 26. Ra8+ {
[%emt 0:00:20]} 1-0